bitfinex/quotes_BTCUSD_20220303
["timestamp","ask_amount","ask_price","bid_price","bid_amount"]
[1646266462994,0.55276893,43752.0,43744.0,0.0011]
[1646266463192,0.55276893,43752.0,43747.0,0.0001695]
[1646266463193,0.27449903,43748.0,43747.0,0.0001695]
[1646266463795,0.27949903,43748.0,43747.0,0.0001695]
[1646266464192,0.27949903,43748.0,43744.0,0.0011]
[1646266464393,0.27949903,43748.0,43745.0,0.0001695]
[1646266465594,0.27449903,43748.0,43744.0,0.00126977]
[1646266465996,0.3,43747.0,43744.0,0.00126977]
[1646266466465,0.3457,43747.0,43744.0,0.00126977]
[1646266466667,0.3457,43747.0,43744.0,0.0011]
[1646266467261,0.21265657,43745.0,43744.0,0.0011]
[1646266467561,0.51265657,43745.0,43744.0,0.0011]
[1646266467762,0.1199,43751.0,43744.0,0.0011]
[1646266467967,0.005,43745.0,43744.0,0.0011]
[1646266468164,0.1932,43759.0,43746.0,0.0041375]
[1646266468165,0.3,43758.0,43746.0,0.0041375]
[1646266468359,0.01142,43764.0,43746.0,0.0041375]
[1646266468360,0.3,43761.0,43749.0,0.057158]
[1646266468559,0.009151,43763.0,43750.0,0.0457]
[1646266468762,0.26192177,43760.0,43755.0,0.27482809]
[1646266468961,0.26192177,43760.0,43750.0,0.0457]
[1646266469165,0.26192177,43760.0,43754.0,0.00016903]
[1646266469561,0.59535929,43764.0,43754.0,0.00016903]
[1646266470303,0.59535929,43764.0,43750.0,0.0457]
[1646266470499,0.59535929,43764.0,43754.0,0.00016903]
[1646266471602,0.61810929,43764.0,43754.0,0.00016903]
[1646266471804,0.61810929,43764.0,43755.0,0.25767908]
[1646266472002,0.61810929,43764.0,43754.0,0.00316903]
[1646266472003,0.48005929,43764.0,43754.0,0.00316903]
[1646266472600,0.48005929,43764.0,43754.0,0.003]
[1646266472800,0.48005929,43764.0,43754.0,0.00316887]
[1646266473000,0.48005929,43764.0,43754.0,0.00016887]
[1646266473210,0.02275,43763.0,43754.0,0.00016887]
[1646266473958,0.02375,43763.0,43749.0,0.002]
[1646266474160,0.02375,43763.0,43754.0,7.409e-05]
[1646266474759,0.12375,43763.0,43754.0,7.409e-05]
[1646266475159,0.12275,43763.0,43748.0,0.17163949]
[1646266475359,0.12275,43763.0,43754.0,7.409e-05]
[1646266476262,0.22751636,43759.0,43753.0,0.24334897]
[1646266476459,0.12275,43763.0,43754.0,0.00019154]
[1646266477461,0.12275,43763.0,43748.0,0.114318]
[1646266477701,0.12275,43763.0,43754.0,0.00019154]
[1646266477901,0.12275,43763.0,43754.0,0.00119154]
[1646266478704,0.12275,43763.0,43754.0,0.001]
[1646266478907,0.28293357,43760.0,43754.0,0.00119154]
[1646266479105,0.12275,43763.0,43754.0,0.00119154]
[1646266479106,0.3,43759.0,43754.0,0.00019154]
[1646266479305,0.02275,43761.0,43754.0,0.00019154]
[1646266479905,0.02275,43761.0,43746.0,0.0041375]
[1646266479906,0.16084161,43755.0,43746.0,0.0041375]
[1646266480108,0.14235,43761.0,43755.0,0.32168322]
[1646266480109,0.20597505,43758.0,43755.0,0.32168322]
[1646266480305,0.5625771,43757.0,43755.0,0.32095045]
[1646266480711,0.3,43757.0,43755.0,0.32095045]
[1646266481659,0.353771,43756.0,43755.0,0.32095045]
[1646266481857,0.67210436,43756.0,43755.0,0.32095045]
[1646266482855,0.67410436,43756.0,43755.0,0.32095045]
[1646266485700,1.02787536,43756.0,43755.0,0.32095045]
[1646266485901,0.008,43756.0,43755.0,0.32095045]
[1646266486902,0.008,43756.0,43755.0,0.53133917]
[1646266487103,0.002,43756.0,43755.0,0.53133917]
[1646266487703,0.002,43756.0,43755.0,0.32095045]
[1646266488956,0.23267056,43756.0,43755.0,0.32095045]
[1646266489155,0.002,43756.0,43755.0,0.32095045]
[1646266490159,0.355771,43756.0,43755.0,0.32095045]
[1646266490360,0.755771,43756.0,43755.0,0.32095045]
[1646266490558,0.402,43756.0,43755.0,0.32095045]
[1646266490757,0.755771,43756.0,43755.0,0.32095045]
[1646266490960,0.67630999,43756.0,43755.0,0.32095045]
[1646266491557,1.03008099,43756.0,43755.0,0.32095045]
[1646266491758,0.67630999,43756.0,43755.0,0.32095045]
[1646266491959,1.18255242,43756.0,43755.0,0.32095045]
[1646266492157,0.67630999,43756.0,43755.0,0.32095045]
[1646266492356,0.82878142,43756.0,43755.0,0.32095045]
[1646266492598,0.67630999,43756.0,43755.0,0.32095045]
[1646266492793,1.03008099,43756.0,43755.0,0.32095045]
[1646266492990,0.67630999,43756.0,43755.0,0.32095045]
[1646266493191,0.82878142,43756.0,43755.0,0.32095045]
[1646266493391,0.67630999,43756.0,43755.0,0.32095045]
[1646266494291,1.03008099,43756.0,43755.0,0.32095045]
[1646266494691,1.18255242,43756.0,43755.0,0.32095045]
[1646266494890,1.03008099,43756.0,43755.0,0.32095045]
[1646266495090,1.18255242,43756.0,43755.0,0.32095045]
[1646266495991,0.82878142,43756.0,43755.0,0.32095045]
[1646266496453,0.67630999,43756.0,43755.0,0.32095045]
[1646266496661,0.37630999,43756.0,43755.0,0.32095045]
[1646266497256,0.27630999,43756.0,43755.0,0.32095045]
[1646266497454,0.38230999,43756.0,43755.0,0.32095045]
[1646266498658,0.28230999,43756.0,43755.0,0.32095045]
[1646266498859,0.38230999,43756.0,43755.0,0.32095045]
[1646266499061,0.57275,43755.0,43746.0,0.0041375]
[1646266499263,0.90742536,43755.0,43746.0,0.0041375]
[1646266499461,0.82522143,43755.0,43746.0,0.0041375]
[1646266499660,0.82522143,43755.0,43746.0,0.0051375]
[1646266499862,0.80247143,43755.0,43746.0,0.0051375]
[1646266500094,0.47275766,43748.0,43746.0,0.0011375]
[1646266500295,0.47275766,43748.0,43746.0,0.0001375]
[1646266500296,0.20795918,43748.0,43746.0,0.0001375]
[1646266501506,0.1,43751.0,43746.0,0.0001375]
[1646266502600,0.18771649,43749.0,43746.0,0.0001375]
[1646266503006,0.18771649,43749.0,43746.0,0.00033423]
[1646266503850,0.18771649,43749.0,43746.0,0.0001375]
[1646266505251,0.27027834,43747.0,43746.0,0.0001375]
[1646266506851,0.31051649,43749.0,43746.0,0.0001375]
[1646266507050,0.30551649,43749.0,43746.0,0.0001375]
[1646266507254,0.1178,43749.0,43739.0,0.0011]
[1646266507710,0.1,43752.0,43739.0,0.0011]
[1646266507910,0.25152651,43752.0,43747.0,0.23519971]
[1646266508110,0.2261,43754.0,43747.0,0.23519971]
[1646266508314,0.003,43754.0,43747.0,0.23519971]
[1646266509110,0.002,43756.0,43747.0,0.23519971]
[1646266509311,0.002,43756.0,43752.0,0.19071566]
[1646266509822,0.005,43756.0,43752.0,0.19071566]
[1646266510617,0.005,43756.0,43755.0,0.21050267]
[1646266510824,0.15267208,43761.0,43756.0,0.00834715]
[1646266511017,0.00019668,43761.0,43756.0,0.00834715]
[1646266511216,0.23500449,43763.0,43756.0,0.00834715]
[1646266511466,0.215046,43765.0,43760.0,0.26551458]
[1646266511667,0.00019669,43761.0,43760.0,0.21242319]
[1646266511863,0.00019669,43761.0,43756.0,0.01034715]
[1646266512463,0.002,43766.0,43756.0,0.01034715]
[1646266512664,0.00019669,43761.0,43756.0,0.31034715]
[1646266513067,0.00019669,43761.0,43756.0,0.57654576]
[1646266513369,0.00019669,43761.0,43756.0,0.30834715]
[1646266513568,0.54738068,43770.0,43763.0,0.21609839]
[1646266513767,0.01141,43772.0,43764.0,0.3]
[1646266513768,0.28180528,43771.0,43764.0,0.3]
[1646266513973,0.1524754,43772.0,43765.0,0.0457]
[1646266514168,0.47062817,43774.0,43769.0,0.24936383]
[1646266514369,0.28342817,43774.0,43769.0,0.24936383]
[1646266514568,0.58180528,43776.0,43772.0,0.19071566]
[1646266514769,0.3500024,43776.0,43772.0,0.19071566]
[1646266514969,0.197527,43776.0,43772.0,0.19071566]
[1646266515226,0.0001883,43774.0,43772.0,0.19071566]
[1646266516028,0.200527,43776.0,43772.0,0.19071566]
[1646266516326,0.0001883,43775.0,43772.0,0.19071566]
[1646266517325,0.197527,43776.0,43772.0,0.19071566]
[1646266517326,0.187527,43776.0,43772.0,0.19071566]
[1646266517526,0.18771529,43776.0,43772.0,0.19071566]
[1646266517726,0.001,43775.0,43772.0,0.19071566]
[1646266517928,0.001,43775.0,43772.0,0.460276]
[1646266518326,0.001,43775.0,43772.0,0.19071566]
[1646266518955,0.00018222,43776.0,43772.0,0.19071566]
[1646266519752,0.00018222,43776.0,43767.0,0.002]
[1646266519753,0.002,43776.0,43767.0,0.002]
[1646266519953,0.00218222,43776.0,43774.0,0.38143132]
[1646266520158,0.48379652,43788.0,43776.0,0.55]
[1646266520354,0.20199124,43788.0,43777.0,0.0457]
[1646266521053,0.20199124,43788.0,43778.0,0.24747699]
[1646266521258,0.20199124,43788.0,43779.0,0.0457]
[1646266521456,0.20199124,43788.0,43779.0,0.10282]
[1646266522253,0.20199124,43788.0,43786.0,0.28374296]
[1646266522454,0.20217384,43788.0,43779.0,0.0457]
[1646266523103,0.20217384,43788.0,43782.0,0.20989534]
[1646266523302,0.20199124,43788.0,43782.0,0.20989534]
[1646266523504,0.20217384,43788.0,43782.0,0.20989534]
[1646266523805,0.20217384,43788.0,43785.0,0.21701852]
[1646266524404,0.20199124,43788.0,43785.0,0.21701852]
[1646266525205,0.20199124,43788.0,43786.0,0.38143132]
[1646266527843,0.20199124,43788.0,43786.0,0.38243132]
[1646266528846,0.00517514,43789.0,43786.0,0.38243132]
[1646266529156,0.00017514,43789.0,43787.0,0.0457]
[1646266529351,0.199,43799.0,43787.0,0.0457]
[1646266529748,0.00018256,43790.0,43787.0,0.0477]
[1646266530512,0.21571942,43792.0,43787.0,0.0477]
[1646266530914,0.00010829,43791.0,43787.0,0.0477]
[1646266531115,0.00010829,43791.0,43787.0,0.0457]
[1646266531716,0.21571942,43792.0,43787.0,0.0477]
[1646266531914,0.00010829,43791.0,43787.0,0.0477]
[1646266532815,0.42438212,43792.0,43787.0,0.0477]
[1646266533214,0.00019663,43791.0,43787.0,0.0477]
[1646266533724,0.00019663,43791.0,43782.0,0.001]
[1646266533725,0.42494663,43791.0,43782.0,0.001]
[1646266533954,0.42380483,43791.0,43782.0,0.001]
[1646266534155,0.1222,43790.0,43782.0,0.001]
[1646266534552,0.26950242,43784.0,43782.0,0.001]
[1646266535153,0.26950242,43784.0,43775.0,0.37187482]
[1646266535355,0.26950242,43784.0,43775.0,0.17023457]
[1646266535554,0.17786347,43785.0,43780.0,0.38143132]
[1646266535956,0.0457,43788.0,43780.0,0.38074019]
[1646266536157,0.101,43789.0,43780.0,0.38074019]
[1646266536959,0.001,43789.0,43783.0,0.16651969]
[1646266537156,0.15854272,43794.0,43783.0,0.16651969]
[1646266537803,0.23606139,43793.0,43788.0,0.26356821]
[1646266538004,0.23616964,43793.0,43783.0,0.16851969]
[1646266538205,0.33616964,43793.0,43783.0,0.16851969]
[1646266538405,0.23616964,43793.0,43783.0,0.16851969]
[1646266538605,0.23616964,43793.0,43783.0,0.002]
[1646266538805,0.23606139,43793.0,43783.0,0.002]
[1646266539106,0.23616964,43793.0,43787.0,0.25960962]
[1646266539304,0.00010825,43793.0,43787.0,0.25960962]
[1646266539805,0.00010825,43793.0,43787.0,0.26160962]
[1646266540004,0.002,43798.0,43787.0,0.002]
[1646266540204,0.002,43798.0,43788.0,0.20951065]
[1646266540407,0.00010825,43793.0,43788.0,0.20951065]
[1646266540606,0.00010825,43793.0,43788.0,0.25521065]
[1646266540808,0.00010825,43793.0,43790.0,0.19002453]
[1646266541007,0.00010825,43793.0,43790.0,0.38074019]
[1646266541207,0.00010825,43793.0,43791.0,0.27403513]
[1646266541467,0.1143,43801.0,43791.0,0.27403513]
[1646266541666,0.00019675,43794.0,43791.0,0.27403513]
[1646266541969,0.00019675,43794.0,43791.0,0.002]
[1646266542365,0.00019675,43794.0,43792.0,0.18226633]
[1646266542566,0.003,43798.0,43792.0,0.18226633]
[1646266542765,0.00019674,43795.0,43792.0,0.18226633]
[1646266542967,0.00019674,43795.0,43794.0,0.33446266]
[1646266543766,0.001,43795.0,43794.0,0.2949319]
[1646266544367,0.001,43795.0,43794.0,0.52610838]
[1646266544770,0.4,43807.0,43794.0,0.2949319]
[1646266544771,0.17921113,43800.0,43794.0,0.2949319]
[1646266544968,0.17921113,43800.0,43794.0,0.19446266]
[1646266545201,0.00019674,43797.0,43794.0,0.19446266]
[1646266545800,0.00119674,43797.0,43795.0,0.28874464]
[1646266546000,0.00119674,43797.0,43794.0,0.19446266]
[1646266546200,0.001,43797.0,43794.0,0.00018836]
[1646266546408,0.001,43797.0,43796.0,0.38074019]
[1646266547004,0.17921113,43800.0,43796.0,0.59066442]
[1646266547605,0.3,43799.0,43796.0,0.38074019]
[1646266547901,0.17921113,43800.0,43796.0,0.38074019]
[1646266549771,0.18521113,43800.0,43796.0,0.62332812]
[1646266550168,0.18521113,43800.0,43796.0,0.38074019]
[1646266550971,0.17921113,43800.0,43796.0,0.38074019]
[1646266551370,0.17921113,43800.0,43796.0,0.19071566]
[1646266551571,0.17921113,43800.0,43795.0,0.00018509]
[1646266551770,0.18221113,43800.0,43798.0,0.38074019]
[1646266553100,0.17921113,43800.0,43798.0,0.38074019]
[1646266553899,0.18321113,43800.0,43798.0,0.38074019]
[1646266555105,0.17921113,43800.0,43798.0,0.38074019]
[1646266555301,0.17921113,43800.0,43798.0,0.26400097]
[1646266555900,0.18321113,43800.0,43798.0,0.26400097]
[1646266556103,0.18321113,43800.0,43798.0,0.21906753]
[1646266556865,0.18321113,43800.0,43791.0,0.2484291]
[1646266557061,0.2301494,43795.0,43791.0,0.2484291]
[1646266557262,0.17921113,43800.0,43781.0,0.320744]
[1646266557458,0.17921113,43800.0,43781.0,0.309334]
[1646266557662,0.46087358,43800.0,43782.0,0.15]
[1646266557859,0.17921113,43800.0,43786.0,0.003]
[1646266558461,0.17921113,43800.0,43791.0,0.00018266]
[1646266558662,0.46087358,43800.0,43791.0,0.15619855]
[1646266558861,0.26898573,43796.0,43791.0,0.37528724]
[1646266559064,0.17921113,43800.0,43791.0,0.37528724]
[1646266559262,0.17921113,43800.0,43791.0,0.37510458]
[1646266559564,0.46087358,43800.0,43793.0,0.00018266]
[1646266560453,0.28166245,43798.0,43793.0,0.00018266]
[1646266560647,0.28166245,43798.0,43791.0,0.001]
[1646266560648,0.3,43797.0,43791.0,0.001]
[1646266560847,0.58166245,43797.0,43794.0,0.00018265]
[1646266561047,0.27507734,43796.0,43794.0,0.00018265]
[1646266561249,0.28166245,43797.0,43794.0,0.00018265]
[1646266561850,0.21298986,43791.0,43785.0,0.24691263]
[1646266562050,0.21298986,43791.0,43780.0,0.01141]
[1646266562253,0.02275,43789.0,43780.0,0.01141]
[1646266562452,0.0457,43788.0,43773.0,0.3]
[1646266562651,0.0457,43788.0,43772.0,0.1215]
[1646266563056,0.25436924,43785.0,43781.0,0.22849419]
[1646266563253,0.0457,43788.0,43781.0,0.22849419]
[1646266564065,0.113,43789.0,43781.0,0.22849419]
[1646266564364,0.0457,43794.0,43790.0,0.2817048]
[1646266564864,0.28166245,43797.0,43791.0,0.3]
[1646266565163,0.119,43799.0,43791.0,0.3]
[1646266565364,0.1874,43801.0,43791.0,0.3]
[1646266565365,0.29080245,43801.0,43791.0,0.3]
[1646266565571,0.32877283,43803.0,43792.0,0.24461416]
[1646266565572,0.28166245,43803.0,43792.0,0.24461416]
[1646266565765,0.32877283,43808.0,43797.0,0.20987064]
[1646266565964,0.00010756,43803.0,43798.0,0.3]
[1646266566363,0.00010756,43803.0,43800.0,0.17359845]
[1646266566567,0.00010756,43803.0,43798.0,0.3]
[1646266566765,0.28233542,43805.0,43793.0,0.32275]
[1646266566965,0.00010757,43803.0,43794.0,0.0457]
[1646266567164,0.00010757,43803.0,43800.0,0.19071566]
[1646266567820,0.45219319,43805.0,43800.0,0.19071566]
[1646266568220,0.0001969,43804.0,43800.0,0.19071566]
[1646266568416,0.44239009,43805.0,43800.0,0.19071566]
[1646266568618,0.004,43802.0,43801.0,0.16793845]
[1646266569017,0.004,43802.0,43800.0,0.19071566]
[1646266569819,0.44239009,43805.0,43800.0,0.19071566]
[1646266570618,0.16985777,43805.0,43800.0,0.19071566]
[1646266570826,0.16985777,43805.0,43800.0,0.19171566]
[1646266571654,0.22432337,43801.0,43800.0,0.19171566]
[1646266572050,0.4986306,43805.0,43800.0,0.19171566]
[1646266572452,0.4986306,43805.0,43802.0,0.02835187]
[1646266572951,0.5016306,43805.0,43804.0,0.19071566]
[1646266573151,0.79076331,43805.0,43804.0,0.14946638]
[1646266573553,0.51115824,43805.0,43804.0,0.14946638]
[1646266573953,0.50815824,43805.0,43804.0,0.14946638]
[1646266574354,0.78823735,43805.0,43804.0,0.14946638]
[1646266574754,0.79323735,43805.0,43804.0,0.14946638]
[1646266575206,0.51316136,43805.0,43804.0,0.14946638]
[1646266575813,1.31263236,43805.0,43804.0,0.14946638]
[1646266576014,0.95886136,43805.0,43804.0,0.14946638]
[1646266576210,0.97027136,43805.0,43804.0,0.14946638]
[1646266576406,1.32404236,43805.0,43804.0,0.14946638]
[1646266576608,1.31904236,43805.0,43804.0,0.14946638]
[1646266576807,1.10927136,43805.0,43804.0,0.14946638]
[1646266577106,1.32304236,43805.0,43804.0,0.14946638]
[1646266577807,1.32304236,43805.0,43804.0,0.02835187]
[1646266578007,1.38295028,43805.0,43804.0,0.17781825]
[1646266578208,1.48348609,43805.0,43804.0,0.17781825]
[1646266578409,1.50338576,43805.0,43804.0,0.17781825]
[1646266578614,1.43947784,43805.0,43804.0,0.17781825]
[1646266578868,1.44347784,43805.0,43804.0,0.17781825]
[1646266579468,1.08970684,43805.0,43804.0,0.17781825]
[1646266579666,1.44347784,43805.0,43804.0,0.17781825]
[1646266580167,1.07429684,43805.0,43804.0,0.17781825]
[1646266580768,1.07829684,43805.0,43804.0,0.17781825]
[1646266581176,1.07829684,43805.0,43804.0,0.16001672]
[1646266581373,0.97776103,43805.0,43804.0,0.16001672]
[1646266581572,1.45402802,43805.0,43804.0,0.16001672]
[1646266581971,1.45002802,43805.0,43804.0,0.16001672]
[1646266582371,1.45002802,43805.0,43804.0,0.01055034]
[1646266583009,1.07428765,43805.0,43804.0,0.01055034]
[1646266583209,0.80790494,43805.0,43799.0,0.00018888]
[1646266583411,0.17192088,43804.0,43799.0,0.00018888]
[1646266583613,0.17192088,43804.0,43787.0,0.1204]
[1646266583614,0.11762088,43803.0,43787.0,0.1204]
[1646266583819,0.34917088,43802.0,43799.0,0.00018887]
[1646266584013,0.09487088,43801.0,43799.0,0.00018887]
[1646266584213,0.04917088,43800.0,43799.0,0.00018887]
[1646266584411,0.09487088,43800.0,43799.0,0.00018887]
[1646266584613,0.09487088,43800.0,43794.0,0.26088297]
[1646266584812,0.28244224,43797.0,43794.0,0.26088297]
[1646266585414,0.28244224,43796.0,43787.0,0.1204]
[1646266585816,0.28244224,43796.0,43791.0,0.20675358]
[1646266586214,0.56656175,43799.0,43791.0,0.20675358]
[1646266586465,0.56656175,43799.0,43794.0,0.23792364]
[1646266586657,0.56656175,43799.0,43791.0,0.20675358]
[1646266586856,0.56856175,43799.0,43791.0,0.20675358]
[1646266587257,0.33151595,43799.0,43793.0,0.0001826]
[1646266587861,0.002,43799.0,43793.0,0.0001826]
[1646266588057,0.32951595,43800.0,43793.0,0.0001826]
[1646266588258,0.32951595,43800.0,43794.0,0.2831576]
[1646266588458,0.32951595,43800.0,43794.0,0.00018259]
[1646266588657,0.44921595,43801.0,43794.0,0.00018259]
[1646266588857,0.54921595,43801.0,43794.0,0.00018259]
[1646266589559,0.76025047,43801.0,43796.0,0.28389685]
[1646266589759,0.64055047,43801.0,43796.0,0.28389685]
[1646266590215,0.42951595,43801.0,43796.0,0.28389685]
[1646266590614,0.42951595,43801.0,43793.0,0.17405507]
[1646266590812,0.42951595,43801.0,43796.0,0.00018301]
[1646266591214,0.28267005,43798.0,43796.0,0.00018301]
[1646266591831,0.28267005,43798.0,43793.0,0.17405507]
[1646266591832,0.28267005,43799.0,43797.0,0.22533971]
[1646266592020,0.38267005,43800.0,43797.0,0.22533971]
[1646266592616,0.38267005,43800.0,43795.0,0.00018302]
[1646266592818,0.28267005,43800.0,43795.0,0.00018302]
[1646266593218,0.28267005,43800.0,43795.0,0.00018299]
[1646266593878,0.28267005,43800.0,43796.0,0.28789255]
[1646266594478,0.28267005,43800.0,43796.0,0.28807554]
[1646266594879,0.28267005,43801.0,43796.0,0.28807554]
[1646266595581,0.28267005,43801.0,43796.0,0.28789255]
[1646266595782,0.28267005,43801.0,43796.0,0.28807554]
[1646266596184,0.00914,43802.0,43796.0,0.28807554]
[1646266596381,0.1828,43804.0,43796.0,0.28807554]
[1646266596786,0.1828,43804.0,43796.0,0.29089255]
[1646266596983,0.01989967,43805.0,43798.0,0.00018299]
[1646266598002,0.01989967,43805.0,43796.0,0.28789255]
[1646266598207,0.01989967,43805.0,43799.0,0.00018298]
[1646266598704,0.01989967,43805.0,43799.0,0.01118298]
[1646266599203,0.01989967,43805.0,43799.0,0.011]
[1646266599405,0.01989967,43805.0,43799.0,0.01118298]
[1646266600003,0.01989967,43805.0,43799.0,0.01018298]
[1646266600303,0.01989967,43805.0,43800.0,0.16038265]
[1646266600911,0.02089967,43805.0,43800.0,0.16038265]
[1646266601385,0.02089967,43805.0,43804.0,0.24144098]
[1646266601769,0.02089967,43805.0,43800.0,0.16038265]
[1646266602169,0.01989967,43805.0,43800.0,0.16038265]
[1646266602771,0.01989967,43805.0,43800.0,0.16238265]
[1646266602971,0.01989967,43805.0,43801.0,0.3]
[1646266603172,0.01989967,43805.0,43802.0,0.26713576]
[1646266608708,0.01989967,43805.0,43802.0,0.26813576]
[1646266610864,0.01989967,43805.0,43802.0,0.26913576]
[1646266611465,0.01989967,43805.0,43802.0,0.44049886]
[1646266612069,0.01989967,43805.0,43802.0,0.43849886]
[1646266612471,0.01989967,43805.0,43804.0,0.14946638]
[1646266612721,0.01989967,43805.0,43804.0,0.15644867]
[1646266613327,0.00018296,43806.0,43805.0,0.55]
[1646266613527,0.1999,43817.0,43806.0,0.00036591]
[1646266613528,0.44082595,43817.0,43806.0,0.00036591]
[1646266613724,0.44082595,43817.0,43806.0,0.04606591]
[1646266613725,0.0999,43817.0,43806.0,0.04606591]
[1646266613925,0.00018296,43807.0,43806.0,0.04606591]
[1646266614327,0.00018296,43807.0,43806.0,0.20881591]
[1646266614526,0.00018296,43807.0,43806.0,0.06881591]
[1646266614727,0.1540074,43814.0,43806.0,0.04606591]
[1646266614924,0.003,43810.0,43806.0,0.04606591]
[1646266615524,0.003,43810.0,43808.0,0.26834785]
[1646266616227,0.003,43810.0,43809.0,0.17868539]
[1646266616464,0.00010782,43811.0,43806.0,0.04606591]
[1646266616666,0.00010782,43811.0,43806.0,0.00036591]
[1646266617066,0.1540074,43814.0,43806.0,0.00036591]
[1646266617269,0.1540074,43814.0,43806.0,0.00136591]
[1646266617468,0.00010782,43811.0,43806.0,0.00136591]
[1646266617965,0.00010782,43811.0,43808.0,0.15644867]
[1646266618366,0.1540074,43814.0,43808.0,0.15644867]
[1646266618568,0.00019791,43812.0,43808.0,0.15644867]
[1646266619571,0.1168,43817.0,43810.0,0.17278698]
[1646266619770,0.00019791,43812.0,43810.0,0.17278698]
[1646266619971,0.00019791,43812.0,43811.0,0.27637947]
[1646266620213,0.00019791,43812.0,43811.0,0.57637947]
[1646266620415,0.00019791,43812.0,43811.0,0.3]
[1646266620814,0.01079152,43819.0,43811.0,0.3]
[1646266620815,0.01,43819.0,43811.0,0.3]
[1646266621014,0.0001911,43814.0,43811.0,0.3]
[1646266621212,0.0001911,43814.0,43810.0,0.17278698]
[1646266622013,0.01,43819.0,43810.0,0.17278698]
[1646266622214,0.00017604,43814.0,43811.0,0.3]
[1646266623120,0.37733733,43835.0,43828.0,0.02275]
[1646266623320,0.114157,43845.0,43815.0,0.14946638]
[1646266623321,0.33020581,43833.0,43829.0,0.23467217]
[1646266623521,0.33020581,43836.0,43830.0,0.459801]
[1646266623718,0.0114,43848.0,43833.0,0.05705]
[1646266623977,0.0114,43848.0,43845.0,0.25403418]
[1646266624179,0.1578334,43847.0,43845.0,0.25403418]
[1646266624389,0.01,43849.0,43845.0,0.29973418]
[1646266624578,0.01010645,43849.0,43845.0,0.29973418]
[1646266624875,0.01010645,43849.0,43846.0,0.357034]
[1646266625076,0.01010645,43849.0,43847.0,0.0457]
[1646266625276,0.01010645,43849.0,43848.0,0.35857174]
[1646266625479,0.00099,43857.0,43850.0,0.02275]
[1646266625678,0.00099,43857.0,43851.0,0.06845]
[1646266625878,0.4198,43871.0,43852.0,0.357024]
[1646266626079,0.4198,43871.0,43855.0,0.99694019]
[1646266626280,0.4198,43871.0,43856.0,0.60512123]
[1646266626477,0.4198,43871.0,43862.0,0.18506898]
[1646266626675,0.4198,43871.0,43864.0,0.05700443]
[1646266626876,0.48969,43878.0,43864.0,0.05700443]
[1646266626877,0.21730145,43875.0,43865.0,0.0457]
[1646266627276,0.22561029,43866.0,43865.0,0.0457]
[1646266627476,0.29758313,43874.0,43865.0,0.0457]
[1646266627720,0.29758313,43874.0,43864.0,0.03625]
[1646266627920,0.29758313,43874.0,43864.0,0.004]
[1646266627921,0.21238678,43869.0,43864.0,0.004]
[1646266628124,0.19674409,43868.0,43864.0,0.004]
[1646266628520,0.19674409,43868.0,43854.0,0.0457]
[1646266628521,0.19674409,43868.0,43866.0,0.14946638]
[1646266628719,0.19674409,43868.0,43866.0,0.15644867]
[1646266629021,0.00010637,43872.0,43866.0,0.15644867]
[1646266629221,0.03414,43877.0,43866.0,0.15644867]
[1646266629222,0.01139,43877.0,43866.0,0.15644867]
[1646266629419,0.00010637,43869.0,43866.0,0.15644867]
[1646266630119,0.6911,43875.0,43866.0,0.15644867]
[1646266630419,0.4,43874.0,43866.0,0.15644867]
[1646266630619,0.20976129,43869.0,43866.0,0.15644867]
[1646266630825,0.4,43874.0,43866.0,0.15644867]
[1646266630826,0.48004307,43868.0,43866.0,0.15644867]
[1646266631219,0.20352679,43868.0,43866.0,0.15644867]
[1646266631456,0.4,43874.0,43866.0,0.15644867]
[1646266631457,0.1,43874.0,43866.0,0.15644867]
[1646266631855,0.1,43875.0,43866.0,0.15644867]
[1646266632258,0.27725632,43874.0,43869.0,0.20976912]
[1646266632458,0.20345992,43869.0,43866.0,0.15644867]
[1646266632957,0.27725632,43874.0,43866.0,0.15644867]
[1646266633363,0.27725632,43874.0,43866.0,0.16044867]
[1646266633364,0.34229562,43874.0,43866.0,0.16044867]
[1646266633558,0.27725632,43874.0,43866.0,0.01098229]
[1646266633759,0.27725632,43874.0,43870.0,0.14946638]
[1646266633959,0.1551148,43873.0,43872.0,0.00698229]
[1646266635710,0.1551148,43873.0,43872.0,2.29e-06]
[1646266635916,1.2462148,43873.0,43872.0,2.29e-06]
[1646266636119,1.83820721,43873.0,43872.0,2.29e-06]
[1646266637314,1.84120721,43873.0,43872.0,2.29e-06]
[1646266637515,1.48743621,43873.0,43872.0,2.29e-06]
[1646266638015,1.84120721,43873.0,43872.0,2.29e-06]
[1646266638519,1.83820721,43873.0,43872.0,2.29e-06]
[1646266638960,1.490571,43873.0,43863.0,0.00019197]
[1646266639163,0.6911,43869.0,43863.0,0.00019197]
[1646266639463,0.6911,43867.0,43863.0,0.00019197]
[1646266639662,0.6911,43865.0,43863.0,0.00019197]
[1646266639864,1.0368,43864.0,43863.0,0.00019197]
[1646266640063,1.10373638,43864.0,43855.0,0.10368419]
[1646266640364,0.6911,43863.0,43862.0,0.00019196]
[1646266640562,0.7368,43863.0,43862.0,0.00019196]
[1646266641169,0.7368,43863.0,43855.0,0.10368419]
[1646266641364,0.23702386,43861.0,43860.0,0.00019196]
[1646266641566,0.0457,43861.0,43860.0,0.00019196]
[1646266641965,0.006,43868.0,43860.0,0.00019196]
[1646266642366,0.006,43868.0,43858.0,0.10368419]
[1646266642629,0.26712963,43867.0,43862.0,0.26942912]
[1646266642830,0.006,43868.0,43862.0,0.00018479]
[1646266643230,0.1,43871.0,43862.0,0.00018479]
[1646266643734,0.25620817,43869.0,43863.0,0.00018479]
[1646266643930,0.17120548,43872.0,43863.0,0.00018479]
[1646266644134,0.17120548,43872.0,43867.0,0.14946638]
[1646266644330,0.002,43872.0,43867.0,0.14946638]
[1646266644532,0.01139,43877.0,43867.0,0.14946638]
[1646266644735,0.16211314,43879.0,43867.0,0.14946638]
[1646266644736,0.01,43879.0,43867.0,0.14946638]
[1646266644932,0.01,43879.0,43868.0,0.10368419]
[1646266645132,9.05e-05,43878.0,43868.0,0.10368419]
[1646266645633,9.05e-05,43878.0,43868.0,0.29290361]
[1646266646033,0.21812373,43879.0,43871.0,0.25591225]
[1646266646239,9.104e-05,43878.0,43871.0,0.25591225]
[1646266646477,9.104e-05,43878.0,43867.0,0.14946638]
[1646266646478,0.16284858,43878.0,43867.0,0.14946638]
[1646266646880,0.85394858,43878.0,43867.0,0.14946638]
[1646266647178,1.00597068,43878.0,43867.0,0.14946638]
[1646266647378,0.21471892,43869.0,43867.0,0.15146638]
[1646266647578,0.21148641,43868.0,43867.0,0.15146638]
[1646266648780,0.28852684,43871.0,43867.0,0.15146638]